[Event "*** Titled Tuesday Blitz"]
[Site "Chess.com"]
[Date "2019.11.05"]
[Round "2"]
[White "2nd_life"]
[Black "albano87"]
[Result "0-1"]
[WhiteElo "2392"]
[BlackElo "1993"]
[TimeControl "180+2"]
[EndTime "13:29:15 PST"]
[Termination "albano87 won by resignation"]

1. e4 {[%clk 0:03:01.9]} 1... c5 {[%clk 0:02:59.7]} 2. Nf3 {[%clk 0:03:02.2]}
2... Nc6 {[%clk 0:03:00.7]} 3. Bb5 {[%clk 0:03:01.1]} 3... d6 {[%clk 0:03:01.8]}
4. O-O {[%clk 0:02:59.5]} 4... Bd7 {[%clk 0:03:00.4]} 5. Re1 {[%clk 0:02:58.7]}
5... Nf6 {[%clk 0:02:57.7]} 6. h3 {[%clk 0:02:52.2]} 6... a6 {[%clk 0:02:57.6]}
7. Bf1 {[%clk 0:02:51.3]} 7... g6 {[%clk 0:02:58.5]} 8. c3 {[%clk 0:02:51.1]}
8... Bg7 {[%clk 0:02:58.3]} 9. d4 {[%clk 0:02:52.1]} 9... cxd4 {[%clk
0:02:59.4]} 10. cxd4 {[%clk 0:02:53.2]} 10... d5 {[%clk 0:03:00.6]} 11. e5
{[%clk 0:02:52.6]} 11... Ne4 {[%clk 0:03:01.4]} 12. Nbd2 {[%clk 0:02:51.5]}
12... Bf5 {[%clk 0:02:52.4]} 13. g4 {[%clk 0:02:40.2]} 13... Nxd2 {[%clk
0:02:48.2]} 14. Bxd2 {[%clk 0:02:31]} 14... Be4 {[%clk 0:02:47.2]} 15. Bc3
{[%clk 0:02:22.5]} 15... Bxf3 {[%clk 0:02:41.9]} 16. Qxf3 {[%clk 0:02:23]} 16...
O-O {[%clk 0:02:41.9]} 17. Bg2 {[%clk 0:02:13.6]} 17... e6 {[%clk 0:02:42.1]}
18. Qd3 {[%clk 0:02:11.9]} 18... b5 {[%clk 0:02:37.2]} 19. Bd2 {[%clk
0:02:08.1]} 19... Rc8 {[%clk 0:02:34.9]} 20. Rec1 {[%clk 0:01:53.3]} 20... Qb6
{[%clk 0:02:25.2]} 21. Be3 {[%clk 0:01:52.4]} 21... Nb4 {[%clk 0:02:25.5]} 22.
Qd2 {[%clk 0:01:48.9]} 22... a5 {[%clk 0:02:25.4]} 23. Rxc8 {[%clk 0:01:23.5]}
23... Rxc8 {[%clk 0:02:25.3]} 24. Rc1 {[%clk 0:01:25.4]} 24... Qb7 {[%clk
0:02:02.2]} 25. Bf1 {[%clk 0:01:02.5]} 25... Rxc1 {[%clk 0:01:55.1]} 26. Qxc1
{[%clk 0:01:03]} 26... Bf8 {[%clk 0:01:53]} 27. a3 {[%clk 0:00:55]} 27... Nc6
{[%clk 0:01:53.1]} 28. Qc2 {[%clk 0:00:48.3]} 28... b4 {[%clk 0:01:52]} 29. Qa4
{[%clk 0:00:36.3]} 29... bxa3 {[%clk 0:01:48.4]} 30. bxa3 {[%clk 0:00:35.8]}
30... Qb6 {[%clk 0:01:46.2]} 31. Bb5 {[%clk 0:00:33.8]} 31... Na7 {[%clk
0:01:43.2]} 32. Bd3 {[%clk 0:00:27.8]} 32... Qb2 {[%clk 0:01:36.7]} 33. Qxa5
{[%clk 0:00:21.6]} 33... Qxa3 {[%clk 0:01:36.7]} 34. Qd2 {[%clk 0:00:21.7]}
34... Nc6 {[%clk 0:01:34.9]} 35. Bb5 {[%clk 0:00:21.7]} 35... Na5 {[%clk
0:01:30.2]} 36. Qe2 {[%clk 0:00:20.7]} 36... Nb3 {[%clk 0:01:25.4]} 37. Be8
{[%clk 0:00:17.1]} 37... Qa1+ {[%clk 0:01:22]} 38. Kg2 {[%clk 0:00:18]} 38...
Nxd4 {[%clk 0:01:22]} 39. Qd3 {[%clk 0:00:06.9]} 39... Bc5 {[%clk 0:01:05.4]}
40. h4 {[%clk 0:00:06.2]} 40... Kf8 {[%clk 0:00:46.6]} 41. Bd7 {[%clk 0:00:07]}
41... Qa7 {[%clk 0:00:44.1]} 42. Bc8 {[%clk 0:00:05.7]} 42... Nc6 {[%clk
0:00:41.3]} 43. Bh6+ {[%clk 0:00:05.3]} 43... Kg8 {[%clk 0:00:40.7]} 44. Qb5
{[%clk 0:00:05.6]} 44... Qb6 {[%clk 0:00:40.7]} 45. Qa4 {[%clk 0:00:04.6]} 45...
Bxf2 {[%clk 0:00:20.3]} 46. Qa8 {[%clk 0:00:04.9]} 46... Nd8 {[%clk 0:00:20.9]}
47. Bd7 {[%clk 0:00:03.5]} 47... Bxh4 {[%clk 0:00:18.7]} 48. Kh3 {[%clk
0:00:04]} 48... Qf2 {[%clk 0:00:16.9]} 49. Bf4 {[%clk 0:00:02.1]} 49... g5
{[%clk 0:00:13.6]} 50. Qxd8+ {[%clk 0:00:02.6]} 50... Kg7 {[%clk 0:00:14.6]} 51.
Qf6+ {[%clk 0:00:03.7]} 51... Kf8 {[%clk 0:00:15.7]} 52. Bh2 {[%clk 0:00:03.5]}
52... Qe3+ {[%clk 0:00:13]} 53. Kg2 {[%clk 0:00:04.8]} 53... Qe2+ {[%clk
0:00:14.6]} 54. Kg1 {[%clk 0:00:05.3]} 54... Qe1+ {[%clk 0:00:14.8]} 55. Qf1
{[%clk 0:00:05.5]} 55... Qe3+ {[%clk 0:00:14.2]} 56. Kg2 {[%clk 0:00:06.9]}
56... Qd2+ {[%clk 0:00:14]} 57. Kh1 {[%clk 0:00:06.9]} 57... Qe3 {[%clk
0:00:13.9]} 58. Bb5 {[%clk 0:00:07.2]} 58... Qe4+ {[%clk 0:00:14.6]} 59. Qg2
{[%clk 0:00:08.6]} 59... Qb1+ {[%clk 0:00:14.8]} 60. Bf1 {[%clk 0:00:09.6]}
60... d4 {[%clk 0:00:16.4]} 61. Qe2 {[%clk 0:00:10.2]} 61... Qb7+ {[%clk
0:00:15.8]} 62. Kg1 {[%clk 0:00:09.8]} 62... Qb6 {[%clk 0:00:16.4]} 63. Qd3
{[%clk 0:00:10.7]} 63... Kg7 {[%clk 0:00:14.6]} 64. Be2 {[%clk 0:00:11.3]} 64...
Be1 {[%clk 0:00:11.2]} 65. Kg2 {[%clk 0:00:11.8]} 65... Qb2 {[%clk 0:00:10.4]}
66. Bg1 {[%clk 0:00:11.8]} 66... Bc3 {[%clk 0:00:11.2]} 67. Bf2 {[%clk
0:00:11.8]} 67... Qc1 {[%clk 0:00:12.6]} 68. Qe4 {[%clk 0:00:12.4]} 68... Qd2
{[%clk 0:00:10.9]} 69. Bd3 {[%clk 0:00:13.1]} 69... Kf8 {[%clk 0:00:11.6]} 70.
Kg3 {[%clk 0:00:10.5]} 70... h6 {[%clk 0:00:11.3]} 71. Bxd4 {[%clk 0:00:09.6]}
71... Bxd4 {[%clk 0:00:10.9]} 72. Qxd4 {[%clk 0:00:11.5]} 72... Qe1+ {[%clk
0:00:12.6]} 73. Kg2 {[%clk 0:00:11.5]} 73... Qd2+ {[%clk 0:00:13.2]} 74. Kh3
{[%clk 0:00:12.2]} 74... Qe1 {[%clk 0:00:11.7]} 75. Qd8+ {[%clk 0:00:12.4]}
75... Kg7 {[%clk 0:00:12.3]} 76. Qf6+ {[%clk 0:00:13.5]} 76... Kg8 {[%clk
0:00:13.4]} 77. Bf1 {[%clk 0:00:13.5]} 77... Qe3+ {[%clk 0:00:12.6]} 78. Kh2
{[%clk 0:00:14.8]} 78... Qe4 {[%clk 0:00:12]} 79. Bh3 {[%clk 0:00:07.6]} 79...
Qe2+ {[%clk 0:00:08.2]} 80. Kh1 {[%clk 0:00:09]} 80... Qe4+ {[%clk 0:00:09.6]}
81. Kg1 {[%clk 0:00:09.5]} 81... Qe3+ {[%clk 0:00:10.5]} 82. Kg2 {[%clk
0:00:10.2]} 82... Qe4+ {[%clk 0:00:11.5]} 83. Kh2 {[%clk 0:00:10.6]} 83... Qe2+
{[%clk 0:00:12.4]} 84. Kh1 {[%clk 0:00:07.8]} 84... Qe1+ {[%clk 0:00:13.3]} 85.
Bf1 {[%clk 0:00:06.2]} 85... Qh4+ {[%clk 0:00:14.8]} 86. Kg1 {[%clk 0:00:06.2]}
86... Qxg4+ {[%clk 0:00:16.3]} 87. Bg2 {[%clk 0:00:07.7]} 87... Qf5 {[%clk
0:00:15]} 88. Qxf5 {[%clk 0:00:07.4]} 88... exf5 {[%clk 0:00:16.3]} 89. Bd5
{[%clk 0:00:08.1]} 89... Kf8 {[%clk 0:00:17.1]} 90. Kg2 {[%clk 0:00:09.1]} 90...
Ke7 {[%clk 0:00:18.4]} 91. Kg3 {[%clk 0:00:10.5]} 91... f6 {[%clk 0:00:20]} 92.
e6 {[%clk 0:00:11.2]} 92... h5 {[%clk 0:00:20.7]} 93. Bc4 {[%clk 0:00:11.9]}
93... f4+ {[%clk 0:00:19.8]} 94. Kf3 {[%clk 0:00:12.8]} 94... f5 {[%clk
0:00:21.2]} 95. Bb3 {[%clk 0:00:13.7]} 95... Kf6 {[%clk 0:00:22.7]} 96. Bc4
{[%clk 0:00:14.6]} 96... h4 {[%clk 0:00:23.8]} 97. Bb3 {[%clk 0:00:15]} 97...
Ke7 {[%clk 0:00:25]} 98. Bc4 {[%clk 0:00:16.2]} 98... h3 {[%clk 0:00:26.1]} 99.
Bb3 {[%clk 0:00:16.5]} 99... Kd6 {[%clk 0:00:26.5]} 100. Bc4 {[%clk 0:00:16.2]}
100... g4+ {[%clk 0:00:27.7]} 101. Kxf4 {[%clk 0:00:15.5]} 101... h2 {[%clk
0:00:28.8]} 102. Bd5 {[%clk 0:00:16.3]} 102... Kxd5 {[%clk 0:00:30.1]} 103. e7
{[%clk 0:00:17.7]} 103... h1=Q {[%clk 0:00:31]} 104. e8=Q {[%clk 0:00:19]}
104... Qe4+ {[%clk 0:00:32.6]} 105. Qxe4+ {[%clk 0:00:19.9]} 105... fxe4 {[%clk
0:00:33.6]} 106. Kxg4 {[%clk 0:00:21.2]} 106... Kd4 {[%clk 0:00:34.3]} 0-1

[Event "*** Titled Tuesday Blitz"]
[Site "Chess.com"]
[Date "2019.11.05"]
[Round "2"]
[White "Joshukid"]
[Black "StockholmMissile"]
[Result "1-0"]
[WhiteElo "2703"]
[BlackElo "2293"]
[TimeControl "180+2"]
[EndTime "13:29:24 PST"]
[Termination "Joshukid won by resignation"]

1. Nf3 {[%clk 0:03:01.9]} 1... d5 {[%clk 0:02:59.7]} 2. c4 {[%clk 0:03:02.5]}
2... d4 {[%clk 0:03:01]} 3. b4 {[%clk 0:03:03.8]} 3... Bg4 {[%clk 0:03:01.1]} 4.
Qb3 {[%clk 0:03:04.2]} 4... Bxf3 {[%clk 0:03:01.8]} 5. Qxf3 {[%clk 0:03:04.8]}
5... c6 {[%clk 0:03:03.1]} 6. e3 {[%clk 0:03:02.3]} 6... e5 {[%clk 0:03:03.4]}
7. c5 {[%clk 0:03:03.6]} 7... Nf6 {[%clk 0:02:53.1]} 8. Bc4 {[%clk 0:03:04.6]}
8... a5 {[%clk 0:02:47.1]} 9. Bb2 {[%clk 0:02:59.3]} 9... axb4 {[%clk
0:02:30.1]} 10. exd4 {[%clk 0:03:00.2]} 10... exd4 {[%clk 0:02:30.9]} 11. O-O
{[%clk 0:03:01.7]} 11... Bxc5 {[%clk 0:02:16.4]} 12. Re1+ {[%clk 0:02:53.5]}
12... Be7 {[%clk 0:02:06.5]} 13. Qe2 {[%clk 0:02:53.5]} 13... c5 {[%clk
0:01:05.2]} 14. a3 {[%clk 0:02:46.5]} 14... Nc6 {[%clk 0:01:04.6]} 15. axb4
{[%clk 0:02:45.3]} 15... Rxa1 {[%clk 0:01:05.4]} 16. Bxa1 {[%clk 0:02:46.4]}
16... cxb4 {[%clk 0:01:06.5]} 17. Bb5 {[%clk 0:02:40.7]} 17... Nd5 {[%clk
0:00:50.2]} 18. Bxd4 {[%clk 0:02:33.3]} 18... O-O {[%clk 0:00:50.9]} 19. Bb2
{[%clk 0:01:55.8]} 19... Bf6 {[%clk 0:00:49.3]} 20. Bxf6 {[%clk 0:01:48.2]}
20... Qxf6 {[%clk 0:00:51.2]} 21. Qc4 {[%clk 0:01:41.4]} 21... Qd6 {[%clk
0:00:28.8]} 22. d4 {[%clk 0:01:32.7]} 22... g6 {[%clk 0:00:28.1]} 23. g3 {[%clk
0:01:27.2]} 23... Nce7 {[%clk 0:00:21.6]} 24. Nd2 {[%clk 0:01:21.8]} 24... Rc8
{[%clk 0:00:21.7]} 25. Qb3 {[%clk 0:01:18.1]} 25... Rc3 {[%clk 0:00:21.6]} 26.
Qb1 {[%clk 0:01:19.6]} 26... Qb6 {[%clk 0:00:21.6]} 27. Ba4 {[%clk 0:01:07.1]}
27... Qxd4 {[%clk 0:00:21.4]} 28. Ne4 {[%clk 0:01:08.3]} 28... Rc7 {[%clk
0:00:18.3]} 29. Bb3 {[%clk 0:01:07.5]} 29... Kg7 {[%clk 0:00:10]} 30. Ng5 {[%clk
0:01:00.6]} 30... h6 {[%clk 0:00:09.5]} 31. Nf3 {[%clk 0:01:00.2]} 31... Qf6
{[%clk 0:00:09.8]} 32. Ne5 {[%clk 0:00:59]} 32... Nc3 {[%clk 0:00:09.3]} 33. Qd3
{[%clk 0:00:57.3]} 33... Nf5 {[%clk 0:00:07.9]} 34. Ng4 {[%clk 0:00:33.6]} 34...
Qb6 {[%clk 0:00:06.3]} 35. Qd8 {[%clk 0:00:32.4]} 35... Rc6 {[%clk 0:00:05.4]}
36. Re8 {[%clk 0:00:27.6]} 36... Qxd8 {[%clk 0:00:05.9]} 37. Rxd8 {[%clk
0:00:28.3]} 37... Rd6 {[%clk 0:00:06.5]} 38. Rb8 {[%clk 0:00:27.3]} 38... Nd5
{[%clk 0:00:07.3]} 39. Rxb7 {[%clk 0:00:25.3]} 39... Nd4 {[%clk 0:00:08]} 40.
Bxd5 {[%clk 0:00:23.3]} 40... Rxd5 {[%clk 0:00:09.9]} 41. Rxb4 {[%clk
0:00:24.6]} 41... Ne6 {[%clk 0:00:11.1]} 42. Ne3 {[%clk 0:00:25.2]} 42... Ra5
{[%clk 0:00:12.3]} 43. Rb7 {[%clk 0:00:25.8]} 43... Ra1+ {[%clk 0:00:13.1]} 44.
Kg2 {[%clk 0:00:27.2]} 44... Ra5 {[%clk 0:00:14]} 45. Nc4 {[%clk 0:00:28.3]}
45... Rc5 {[%clk 0:00:13.9]} 46. Nd6 {[%clk 0:00:28.6]} 46... g5 {[%clk
0:00:04]} 47. Rxf7+ {[%clk 0:00:27.5]} 47... Kg6 {[%clk 0:00:05]} 48. Re7 {[%clk
0:00:27.9]} 48... Nd4 {[%clk 0:00:05.2]} 49. Re4 {[%clk 0:00:26.1]} 49... Rd5
{[%clk 0:00:05.9]} 50. Nc4 {[%clk 0:00:26.5]} 50... Rd8 {[%clk 0:00:05.5]} 51.
h3 {[%clk 0:00:19.8]} 51... h5 {[%clk 0:00:06.4]} 52. Re5 {[%clk 0:00:20.1]}
52... Nc2 {[%clk 0:00:04.4]} 53. Re6+ {[%clk 0:00:20.2]} 53... Kf7 {[%clk
0:00:05.2]} 54. Rh6 {[%clk 0:00:19.8]} 54... h4 {[%clk 0:00:05]} 55. gxh4 {[%clk
0:00:20.7]} 55... gxh4 {[%clk 0:00:06.9]} 56. Rxh4 {[%clk 0:00:22.1]} 56... Nd4
{[%clk 0:00:07]} 57. Ne5+ {[%clk 0:00:22.5]} 57... Kf6 {[%clk 0:00:08.2]} 58.
Ng4+ {[%clk 0:00:22.3]} 58... Kg5 {[%clk 0:00:09.5]} 59. Rh7 {[%clk 0:00:21.3]}
59... Ne2 {[%clk 0:00:10.7]} 60. Rg7+ {[%clk 0:00:21.9]} 60... Kf5 {[%clk
0:00:11.1]} 61. Rf7+ {[%clk 0:00:21.7]} 61... Kg6 {[%clk 0:00:11.2]} 62. Re7
{[%clk 0:00:21.6]} 62... Nf4+ {[%clk 0:00:11.6]} 63. Kg3 {[%clk 0:00:23.2]}
63... Nh5+ {[%clk 0:00:12.7]} 64. Kh2 {[%clk 0:00:23.8]} 64... Rf8 {[%clk
0:00:12.3]} 65. Re6+ {[%clk 0:00:24.2]} 65... Kg5 {[%clk 0:00:12.6]} 66. Re5+
{[%clk 0:00:25.3]} 66... Kg6 {[%clk 0:00:13.5]} 67. Re3 {[%clk 0:00:23.7]} 67...
Kg5 {[%clk 0:00:14.1]} 68. Re1 {[%clk 0:00:23.9]} 68... Kh4 {[%clk 0:00:14.8]}
69. Re4 {[%clk 0:00:23.2]} 69... Kg5 {[%clk 0:00:15.4]} 70. Ra4 {[%clk
0:00:20.7]} 70... Rf7 {[%clk 0:00:08.8]} 71. Ra5+ {[%clk 0:00:20.8]} 71... Kh4
{[%clk 0:00:10]} 72. Ra4 {[%clk 0:00:21.6]} 72... Kg5 {[%clk 0:00:10.9]} 73. Ra2
{[%clk 0:00:22.3]} 73... Rf8 {[%clk 0:00:11.5]} 74. Ne5 {[%clk 0:00:22]} 74...
Rf5 {[%clk 0:00:11.6]} 75. Ng4 {[%clk 0:00:22.6]} 75... Rf8 {[%clk 0:00:10.2]}
76. Ne3 {[%clk 0:00:23.4]} 76... Nf4 {[%clk 0:00:08.5]} 77. Ra5+ {[%clk
0:00:24.1]} 77... Kg6 {[%clk 0:00:09.7]} 78. Ng2 {[%clk 0:00:22.7]} 78... Nh5
{[%clk 0:00:07.4]} 79. Ra6+ {[%clk 0:00:21.5]} 79... Kg7 {[%clk 0:00:05.7]} 80.
Ra7+ {[%clk 0:00:22.3]} 80... Kh6 {[%clk 0:00:05.7]} 81. Ra2 {[%clk 0:00:23.7]}
81... Kg7 {[%clk 0:00:06.7]} 82. Kg1 {[%clk 0:00:23]} 82... Rb8 {[%clk 0:00:07]}
83. Ne3 {[%clk 0:00:23.1]} 83... Nf4 {[%clk 0:00:07.9]} 84. h4 {[%clk
0:00:20.3]} 84... Ng6 {[%clk 0:00:07.7]} 85. Ng2 {[%clk 0:00:19.3]} 85... Rb4
{[%clk 0:00:06.9]} 86. h5 {[%clk 0:00:16.8]} 86... Nf4 {[%clk 0:00:07.1]} 87.
Nxf4 {[%clk 0:00:18.2]} 87... Rxf4 {[%clk 0:00:08.8]} 88. Ra5 {[%clk 0:00:19.6]}
88... Kh6 {[%clk 0:00:09.6]} 89. Kg2 {[%clk 0:00:21.1]} 89... Rg4+ {[%clk
0:00:09.3]} 90. Kf3 {[%clk 0:00:22]} 90... Rh4 {[%clk 0:00:09.8]} 91. Kg3 {[%clk
0:00:22.6]} 91... Rb4 {[%clk 0:00:08.8]} 92. f3 {[%clk 0:00:22.6]} 92... Rc4
{[%clk 0:00:09.9]} 93. Re5 {[%clk 0:00:23.3]} 93... Rb4 {[%clk 0:00:10.6]} 94.
f4 {[%clk 0:00:24.7]} 94... Rb1 {[%clk 0:00:09.1]} 95. Kg4 {[%clk 0:00:25.9]}
95... Rg1+ {[%clk 0:00:09.8]} 96. Kf5 {[%clk 0:00:24.9]} 96... Kxh5 {[%clk
0:00:10.5]} 97. Ke6+ {[%clk 0:00:23.7]} 97... Kh6 {[%clk 0:00:06.7]} 98. f5
{[%clk 0:00:20]} 98... Kg7 {[%clk 0:00:07.8]} 99. Ke7 {[%clk 0:00:21.1]} 99...
Rf1 {[%clk 0:00:07]} 100. Ke6 {[%clk 0:00:14.9]} 100... Kf8 {[%clk 0:00:06.2]}
101. Ra5 {[%clk 0:00:14.5]} 101... Re1+ {[%clk 0:00:06.7]} 102. Kf6 {[%clk
0:00:15.8]} 102... Re8 {[%clk 0:00:07.5]} 103. Ra7 {[%clk 0:00:15]} 103... Rb8
{[%clk 0:00:08.4]} 104. Ra6 {[%clk 0:00:15.8]} 104... Rc8 {[%clk 0:00:09.2]}
105. Kg6 {[%clk 0:00:16.9]} 105... Rb8 {[%clk 0:00:09.7]} 106. f6 {[%clk
0:00:18.3]} 106... Rc8 {[%clk 0:00:10.7]} 107. Ra7 {[%clk 0:00:19.4]} 107... Rb8
{[%clk 0:00:11.8]} 108. Rh7 {[%clk 0:00:20.2]} 108... Kg8 {[%clk 0:00:10.8]}
109. f7+ {[%clk 0:00:21.2]} 1-0

[Event "*** Titled Tuesday Blitz"]
[Site "Chess.com"]
[Date "2019.11.05"]
[Round "2"]
[White "WPWPWP-2015"]
[Black "Siemba"]
[Result "1-0"]
[WhiteElo "2495"]
[BlackElo "2225"]
[TimeControl "180+2"]
[EndTime "13:29:38 PST"]
[Termination "WPWPWP-2015 won on time"]

1. e4 {[%clk 0:03:01.9]} 1... c5 {[%clk 0:02:59.1]} 2. Nc3 {[%clk 0:03:00.2]}
2... Nc6 {[%clk 0:02:58.6]} 3. Bb5 {[%clk 0:03:00.3]} 3... g6 {[%clk 0:02:55.6]}
4. f4 {[%clk 0:03:00]} 4... Bg7 {[%clk 0:02:52.6]} 5. Nf3 {[%clk 0:03:00.5]}
5... Nd4 {[%clk 0:02:52.7]} 6. Bc4 {[%clk 0:03:00.1]} 6... e6 {[%clk 0:02:48.1]}
7. O-O {[%clk 0:02:59.8]} 7... Ne7 {[%clk 0:02:44.4]} 8. e5 {[%clk 0:03:00.2]}
8... O-O {[%clk 0:02:35.9]} 9. Nxd4 {[%clk 0:02:58.4]} 9... cxd4 {[%clk
0:02:37.8]} 10. Ne4 {[%clk 0:02:58.4]} 10... d5 {[%clk 0:02:26.2]} 11. exd6
{[%clk 0:02:57.8]} 11... Nf5 {[%clk 0:02:20.9]} 12. d3 {[%clk 0:02:54.6]} 12...
Nxd6 {[%clk 0:02:15.5]} 13. Bb3 {[%clk 0:02:40.6]} 13... Nf5 {[%clk 0:02:07.1]}
14. Qe2 {[%clk 0:02:23.6]} 14... b6 {[%clk 0:02:03.7]} 15. Bd2 {[%clk
0:02:22.6]} 15... Bb7 {[%clk 0:01:40.4]} 16. a4 {[%clk 0:02:21.9]} 16... a5
{[%clk 0:01:25.7]} 17. Kh1 {[%clk 0:02:11.4]} 17... Rc8 {[%clk 0:01:22.6]} 18.
Rf3 {[%clk 0:02:07.2]} 18... Nh4 {[%clk 0:01:18.3]} 19. Rf2 {[%clk 0:02:03.5]}
19... Re8 {[%clk 0:01:12]} 20. Re1 {[%clk 0:01:46.6]} 20... h6 {[%clk 0:01:10]}
21. Qf1 {[%clk 0:01:40.4]} 21... Nf5 {[%clk 0:01:03.7]} 22. Rfe2 {[%clk
0:01:34.8]} 22... Qh4 {[%clk 0:00:59.8]} 23. Qf2 {[%clk 0:01:33.2]} 23... Qe7
{[%clk 0:00:49]} 24. Kg1 {[%clk 0:01:22.5]} 24... Red8 {[%clk 0:00:43.6]} 25. h3
{[%clk 0:00:56.8]} 25... Ne3 {[%clk 0:00:35.6]} 26. Bc1 {[%clk 0:00:28.4]} 26...
Nf5 {[%clk 0:00:21.7]} 27. Kh2 {[%clk 0:00:26.9]} 27... Qc7 {[%clk 0:00:19.2]}
28. Kg1 {[%clk 0:00:26.1]} 28... Ba8 {[%clk 0:00:16.8]} 29. Ng3 {[%clk
0:00:20.8]} 29... Ne3 {[%clk 0:00:12.3]} 30. Ne4 {[%clk 0:00:12.3]} 30... Bd5
{[%clk 0:00:12.2]} 31. Bxd5 {[%clk 0:00:12.1]} 31... Rxd5 {[%clk 0:00:12.3]} 32.
Kh2 {[%clk 0:00:12.4]} 32... Nxc2 {[%clk 0:00:12.6]} 33. Rf1 {[%clk 0:00:08.3]}
33... Nb4 {[%clk 0:00:13.6]} 34. Qf3 {[%clk 0:00:08.4]} 34... Rdd8 {[%clk
0:00:11.7]} 35. Nf2 {[%clk 0:00:08.2]} 35... Qc6 {[%clk 0:00:12.3]} 36. Qg3
{[%clk 0:00:07.6]} 36... Qd6 {[%clk 0:00:12.8]} 37. Ng4 {[%clk 0:00:07.3]} 37...
h5 {[%clk 0:00:12.7]} 38. Ne5 {[%clk 0:00:07.3]} 38... Rc2 {[%clk 0:00:09]} 39.
Rxc2 {[%clk 0:00:06.2]} 39... Nxc2 {[%clk 0:00:10.9]} 40. Qf3 {[%clk 0:00:04.4]}
40... Nb4 {[%clk 0:00:09.2]} 41. Qg3 {[%clk 0:00:04.6]} 41... Qd5 {[%clk
0:00:09.8]} 42. Re1 {[%clk 0:00:05]} 42... Rc8 {[%clk 0:00:10.7]} 43. Qf2 {[%clk
0:00:03.9]} 43... Rc2 {[%clk 0:00:11.1]} 44. Qg3 {[%clk 0:00:04.9]} 44... Rc8
{[%clk 0:00:09]} 45. Bd2 {[%clk 0:00:05.4]} 45... Rc2 {[%clk 0:00:06.9]} 46.
Bxb4 {[%clk 0:00:05.7]} 46... axb4 {[%clk 0:00:08.8]} 47. Qf3 {[%clk 0:00:04.8]}
47... Qxf3 {[%clk 0:00:09.3]} 48. Nxf3 {[%clk 0:00:05.5]} 48... Rxb2 {[%clk
0:00:10.2]} 49. Rc1 {[%clk 0:00:06.4]} 49... Bf6 {[%clk 0:00:10.9]} 50. Rc6
{[%clk 0:00:06.9]} 50... Ra2 {[%clk 0:00:08.5]} 51. Rxb6 {[%clk 0:00:07]} 51...
Rxa4 {[%clk 0:00:09.8]} 52. Nd2 {[%clk 0:00:07.3]} 52... Ra3 {[%clk 0:00:10.7]}
53. Rxb4 {[%clk 0:00:05.1]} 53... Rxd3 {[%clk 0:00:11.4]} 54. Ne4 {[%clk
0:00:06.3]} 54... Kg7 {[%clk 0:00:12.9]} 55. Rb7 {[%clk 0:00:06.5]} 55... Re3
{[%clk 0:00:13.2]} 56. Nd6 {[%clk 0:00:07.6]} 56... Kg8 {[%clk 0:00:03.5]} 57.
Rb8+ {[%clk 0:00:05.7]} 57... Kh7 {[%clk 0:00:04]} 58. Rb7 {[%clk 0:00:05.8]}
58... d3 {[%clk 0:00:04.8]} 59. Rxf7+ {[%clk 0:00:05.7]} 59... Bg7 {[%clk
0:00:05.9]} 60. Rd7 {[%clk 0:00:06.2]} 60... d2 {[%clk 0:00:06.7]} 61. Nc4
{[%clk 0:00:06.4]} 61... Rc3 {[%clk 0:00:07.1]} 62. Nxd2 {[%clk 0:00:07.1]}
62... Kh6 {[%clk 0:00:08]} 63. Ne4 {[%clk 0:00:07]} 63... Rc4 {[%clk 0:00:09.3]}
64. Ng5 {[%clk 0:00:06]} 64... Rxf4 {[%clk 0:00:09.9]} 65. Nxe6 {[%clk
0:00:05.1]} 65... Be5 {[%clk 0:00:06.4]} 66. Nxf4 {[%clk 0:00:05.9]} 66... Bxf4+
{[%clk 0:00:08.3]} 67. Kg1 {[%clk 0:00:06.5]} 67... Be5 {[%clk 0:00:09.7]} 68.
Kf2 {[%clk 0:00:07.4]} 68... Bg7 {[%clk 0:00:09.8]} 69. Kf3 {[%clk 0:00:07.8]}
69... Kh7 {[%clk 0:00:11]} 70. Rb7 {[%clk 0:00:08.2]} 70... Kh6 {[%clk
0:00:12.2]} 71. Kf4 {[%clk 0:00:08.8]} 71... Bf6 {[%clk 0:00:12.9]} 72. Rb6
{[%clk 0:00:06.8]} 72... Bd4 {[%clk 0:00:13.4]} 73. Rc6 {[%clk 0:00:07.1]} 73...
Bb2 {[%clk 0:00:14.4]} 74. Ke4 {[%clk 0:00:07.5]} 74... Bg7 {[%clk 0:00:15]} 75.
Rc5 {[%clk 0:00:08.1]} 75... Bf6 {[%clk 0:00:15.7]} 76. Rb5 {[%clk 0:00:08.9]}
76... Bg7 {[%clk 0:00:16.9]} 77. Kf4 {[%clk 0:00:09.8]} 77... Bf6 {[%clk
0:00:17.7]} 78. Rb6 {[%clk 0:00:08.8]} 78... Bd4 {[%clk 0:00:18]} 79. Ra6 {[%clk
0:00:09.5]} 79... Bc3 {[%clk 0:00:18.8]} 80. g4 {[%clk 0:00:08.3]} 80... hxg4
{[%clk 0:00:16.8]} 81. Kxg4 {[%clk 0:00:06.6]} 81... Bd2 {[%clk 0:00:10.7]} 82.
Rc6 {[%clk 0:00:06.8]} 82... Be3 {[%clk 0:00:10.8]} 83. h4 {[%clk 0:00:07.3]}
83... Kh7 {[%clk 0:00:10.7]} 84. Rc7+ {[%clk 0:00:07.8]} 84... Kh6 {[%clk
0:00:11.6]} 85. Rd7 {[%clk 0:00:08.4]} 85... Bc1 {[%clk 0:00:12.3]} 86. Rd6
{[%clk 0:00:09.3]} 86... Kh7 {[%clk 0:00:13.1]} 87. Re6 {[%clk 0:00:09]} 87...
Kg7 {[%clk 0:00:13.5]} 88. Rc6 {[%clk 0:00:09.5]} 88... Bd2 {[%clk 0:00:14.5]}
89. Kf3 {[%clk 0:00:09.7]} 89... Be1 {[%clk 0:00:14.8]} 90. Kg4 {[%clk
0:00:09.7]} 90... Bd2 {[%clk 0:00:15.9]} 91. Rd6 {[%clk 0:00:09.7]} 91... Bc1
{[%clk 0:00:16]} 92. Rd7+ {[%clk 0:00:10.9]} 92... Kh6 {[%clk 0:00:15.8]} 93.
Rd1 {[%clk 0:00:11.6]} 93... Be3 {[%clk 0:00:16.4]} 94. Kf3 {[%clk 0:00:12.4]}
94... Bc5 {[%clk 0:00:15.5]} 95. Rd5 {[%clk 0:00:12.5]} 95... Be7 {[%clk
0:00:15.1]} 96. Kg4 {[%clk 0:00:13.4]} 96... Bf6 {[%clk 0:00:08.9]} 97. Rd6
{[%clk 0:00:13.4]} 97... Kg7 {[%clk 0:00:10.1]} 98. Rc6 {[%clk 0:00:11.5]} 98...
Bd4 {[%clk 0:00:07.1]} 99. Ra6 {[%clk 0:00:10.6]} 99... Be3 {[%clk 0:00:07.7]}
100. Re6 {[%clk 0:00:10.5]} 100... Bd2 {[%clk 0:00:08.8]} 101. Rc6 {[%clk
0:00:10.3]} 101... Be3 {[%clk 0:00:09.6]} 102. Rd6 {[%clk 0:00:11.4]} 102... Bc1
{[%clk 0:00:10.2]} 103. Re6 {[%clk 0:00:12]} 103... Bd2 {[%clk 0:00:11.1]} 104.
Re2 {[%clk 0:00:12]} 104... Bc1 {[%clk 0:00:12.1]} 105. Rg2 {[%clk 0:00:12.8]}
105... Be3 {[%clk 0:00:12.5]} 106. Kf3 {[%clk 0:00:08.8]} 106... Bc1 {[%clk
0:00:09.1]} 107. h5 {[%clk 0:00:09.3]} 107... g5 {[%clk 0:00:07]} 108. Kg4
{[%clk 0:00:10]} 108... Bf4 {[%clk 0:00:05.5]} 109. Rc2 {[%clk 0:00:09.7]} 1-0

[Event "*** Titled Tuesday Blitz"]
[Site "Chess.com"]
[Date "2019.11.05"]
[Round "3"]
[White "JustKid"]
[Black "chito89"]
[Result "0-1"]
[WhiteElo "2449"]
[BlackElo "2745"]
[TimeControl "180+2"]
[EndTime "13:34:09 PST"]
[Termination "chito89 won by resignation"]

1. d4 {[%clk 0:03:01.9]} 1... Nf6 {[%clk 0:01:51.5]} 2. Bf4 {[%clk 0:03:00.2]}
2... e6 {[%clk 0:01:52.2]} 3. e3 {[%clk 0:03:01.2]} 3... c5 {[%clk 0:01:53.5]}
4. Nf3 {[%clk 0:03:02.3]} 4... d5 {[%clk 0:01:52.8]} 5. c3 {[%clk 0:02:58.5]}
5... Bd6 {[%clk 0:01:53.1]} 6. Bg3 {[%clk 0:03:00]} 6... O-O {[%clk 0:01:54.4]}
7. Nbd2 {[%clk 0:02:51.8]} 7... Qc7 {[%clk 0:01:51.7]} 8. Rc1 {[%clk 0:02:52.4]}
8... Nc6 {[%clk 0:01:46.2]} 9. dxc5 {[%clk 0:02:47]} 9... Bxg3 {[%clk
0:01:43.5]} 10. hxg3 {[%clk 0:02:48.9]} 10... e5 {[%clk 0:01:43.8]} 11. Be2
{[%clk 0:02:42.7]} 11... a5 {[%clk 0:01:42.9]} 12. Qa4 {[%clk 0:02:38.8]} 12...
Bg4 {[%clk 0:01:39.1]} 13. Rh4 {[%clk 0:02:14.1]} 13... h5 {[%clk 0:01:37.8]}
14. Ng5 {[%clk 0:01:55.4]} 14... e4 {[%clk 0:01:22.7]} 15. f3 {[%clk 0:01:37.1]}
15... Qxg3+ {[%clk 0:01:19.6]} 0-1